fUSD/lending_fUSD_20241102
["ID","MTS","AMOUNT","RATE_DAILY","PERIOD"]
[341185149,1730562645726,-177.88,0.00037534,2]
[341185150,1730562645736,-500.0,0.00037534,2]
[341185151,1730562645746,-1607.83,0.00037534,2]
[341185152,1730562645755,-500.0,0.00037534,2]
[341185153,1730562645765,-1607.83,0.00037534,2]
[341185154,1730562645775,-500.0,0.00037534,2]
[341185155,1730562645784,-1607.83,0.00037534,2]
[341185156,1730562645796,-500.0,0.00037534,2]
[341185157,1730562645807,-1607.83,0.00037534,2]
[341185158,1730562645816,-500.0,0.00037534,2]
[341185159,1730562645827,-500.0,0.00037534,2]
[341185160,1730562645836,-1607.83,0.00037534,2]
[341185161,1730562645846,-500.0,0.00037534,2]
[341185162,1730562645856,-500.0,0.00037534,2]
[341185163,1730562645866,-1607.83,0.00037534,2]
[341185164,1730562645878,-500.0,0.00037534,2]
[341185165,1730562645888,-500.0,0.00037534,2]
[341185166,1730562645898,-500.0,0.00037534,2]
[341185167,1730562645907,-500.0,0.00037534,2]
[341185168,1730562645917,-500.0,0.00037534,2]
[341185169,1730562645926,-507.03819598,0.00037534,2]
[341185170,1730562645935,-500.0,0.00037534,2]
[341185171,1730562645945,-500.0,0.00037534,2]
[341185172,1730562645956,-386.18958014,0.00037534,2]
[341185173,1730562645966,-500.0,0.00037534,2]
[341185174,1730562645976,-1451.18,0.00037534,2]
[341185175,1730562645987,-500.0,0.00037534,2]
[341185176,1730562645996,-500.0,0.00037534,2]
[341185177,1730562646006,-1451.18,0.00037534,2]
[341185178,1730562646016,-500.0,0.00037534,2]
[341185179,1730562646025,-1451.18,0.00037534,2]
[341185180,1730562646035,-500.0,0.00037534,2]
[341185181,1730562646044,-1451.18,0.00037534,2]
[341185182,1730562646054,-500.0,0.00037534,2]
[341185183,1730562646063,-500.0,0.00037534,2]
[341185184,1730562646073,-1451.18,0.00037534,2]
[341185185,1730562646082,-500.0,0.00037534,2]
[341185186,1730562646092,-500.0,0.00037534,2]
[341185187,1730562646101,-1451.18,0.00037534,2]
[341185188,1730562646111,-500.0,0.00037534,2]
[341185189,1730562646120,-500.0,0.00037534,2]
[341185190,1730562646134,-1451.18,0.00037534,2]
[341185191,1730562646143,-500.0,0.00037534,2]
[341185192,1730562646153,-1451.18,0.00037534,2]
[341185193,1730562646162,-500.0,0.00037534,2]
[341185194,1730562646172,-155.21915525,0.00037534,2]
[341185195,1730562646181,-1451.18,0.00037534,2]
[341185196,1730562646191,-500.0,0.00037534,2]
[341185197,1730562646200,-500.0,0.00037534,2]
[341185198,1730562646210,-529.09965938,0.00037534,2]
[341185199,1730562646219,-500.0,0.00037534,2]
[341185200,1730562646228,-1451.18,0.00037534,2]
[341185201,1730562646237,-500.0,0.00037534,2]
[341185202,1730562646247,-500.0,0.00037534,2]
[341185203,1730562646256,-1451.18,0.00037534,2]
[341185204,1730562646265,-500.0,0.00037534,2]
[341185205,1730562646275,-500.0,0.00037534,2]
[341185206,1730562646284,-1451.18,0.00037534,2]
[341185207,1730562646294,-500.0,0.00037534,2]
[341185208,1730562646303,-500.0,0.00037534,2]
[341185209,1730562646313,-1451.18,0.00037534,2]
[341185210,1730562646323,-500.0,0.00037534,2]
[341185211,1730562646332,-1451.18,0.00037534,2]
[341185212,1730562646342,-500.0,0.00037534,2]
[341185213,1730562646351,-1451.18,0.00037534,2]
[341185214,1730562646360,-500.0,0.00037534,2]
[341185216,1730562646370,-1451.18,0.00037534,2]
[341185217,1730562646380,-500.0,0.00037534,2]
[341185218,1730562646389,-1451.18,0.00037534,2]
[341185219,1730562646399,-500.0,0.00037534,2]
[341185220,1730562646409,-1451.18,0.00037534,2]
[341185221,1730562646418,-500.0,0.00037534,2]
[341185222,1730562646427,-1451.18,0.00037534,2]
[341185223,1730562646436,-635.33453794,0.00037534,2]
[341185224,1730562646446,-500.0,0.00037534,2]
[341185225,1730562646455,-1451.18,0.00037534,2]
[341185226,1730562646464,-500.0,0.00037534,2]
[341185227,1730562646474,-1451.18,0.00037534,2]
[341185228,1730562646484,-500.0,0.00037534,2]
[341185229,1730562646494,-500.0,0.00037534,2]
[341185230,1730562646503,-500.0,0.00037534,2]
[341185231,1730562646512,-500.0,0.00037534,2]
[341185232,1730562646521,-1451.18,0.00037534,2]
[341185233,1730562646530,-500.0,0.00037534,2]
[341185234,1730562646540,-1451.18,0.00037534,2]
[341185235,1730562646549,-500.0,0.00037534,2]
[341185236,1730562646558,-500.0,0.00037534,2]
[341185237,1730562646567,-1451.2501919,0.00037534,2]
[341185238,1730562646580,-500.0,0.00037534,2]
[341185239,1730562646589,-500.0,0.00037534,2]
[341185240,1730562646598,-500.0,0.00037534,2]
[341185241,1730562646607,-500.0,0.00037534,2]
[341185242,1730562646617,-500.0,0.00037534,2]
[341185243,1730562646626,-623.25,0.00037534,2]
[341185244,1730562646635,-500.0,0.00037534,2]
[341185245,1730562646645,-500.0,0.00037534,2]
[341185246,1730562646655,-500.0,0.00037534,2]
[341185247,1730562646665,-500.0,0.00037534,2]
[341185248,1730562646674,-500.0,0.00037534,2]
[341185249,1730562646741,-500.0,0.00037534,2]
[341185250,1730562646751,-500.0,0.00037534,2]
[341185251,1730562646760,-500.0,0.00037534,2]
[341185252,1730562646769,-500.0,0.00037534,2]
[341185253,1730562646779,-500.0,0.00037534,2]
[341185254,1730562646788,-500.0,0.00037534,2]
[341185255,1730562646800,-500.0,0.00037534,2]
[341185256,1730562646809,-500.0,0.00037534,2]
[341185257,1730562646818,-500.0,0.00037534,2]
[341185258,1730562646830,-500.0,0.00037534,2]
[341185259,1730562646839,-500.0,0.00037534,2]
[341185260,1730562646850,-500.0,0.00037534,2]
[341185261,1730562646859,-500.0,0.00037534,2]
[341185262,1730562646868,-500.0,0.00037534,2]
[341185263,1730562646881,-500.0,0.00037534,2]
[341185264,1730562646890,-161.6201517,0.00037534,2]
[341185265,1730562646899,-500.0,0.00037534,2]
[341185266,1730562646908,-500.0,0.00037534,2]
[341185267,1730562646917,-500.0,0.00037534,2]
[341185268,1730562646926,-151.07517302,0.00037534,2]
[341185269,1730562646936,-500.0,0.00037534,2]
[341185270,1730562646945,-500.0,0.00037534,2]
[341185271,1730562646955,-500.0,0.00037534,2]
[341185272,1730562646965,-500.0,0.00037534,2]
[341185273,1730562646974,-500.0,0.00037534,2]
[341185274,1730562646983,-529.86997907,0.00037534,2]
[341185275,1730562646992,-500.0,0.00037534,2]
[341185276,1730562647002,-500.0,0.00037534,2]
[341185277,1730562647011,-159.29421967,0.00037534,2]
[341185278,1730562647021,-500.0,0.00037534,2]
[341185279,1730562647031,-500.0,0.00037534,2]
[341185280,1730562647040,-500.0,0.00037534,2]
[341185281,1730562647050,-429.2768045,0.00037534,2]
[341185282,1730562647059,-500.0,0.00037534,2]
[341185283,1730562647068,-500.0,0.00037534,2]
[341185284,1730562647078,-500.0,0.00037534,2]
[341185285,1730562647088,-500.0,0.00037534,2]
[341185286,1730562647097,-500.0,0.00037534,2]
[341185287,1730562647107,-500.0,0.00037534,2]
[341185288,1730562647116,-500.0,0.00037534,2]
[341185289,1730562647125,-500.0,0.00037534,2]
[341185290,1730562647135,-314.28286856,0.00037534,2]
[341185291,1730562647144,-500.0,0.00037534,2]
[341185292,1730562647154,-500.0,0.00037534,2]
[341185293,1730562647163,-500.0,0.00037534,2]
[341185294,1730562647173,-7813.29,0.00037534,2]
[341185295,1730562647183,-7813.29,0.00037534,2]
[341185296,1730562647198,-500.0,0.00037534,2]
[341185297,1730562647216,-7813.29,0.00037534,2]
[341185298,1730562647232,-500.0,0.00037534,2]
[341185299,1730562647251,-7813.29,0.00037534,2]
[341185300,1730562647270,-500.0,0.00037534,2]
[341185301,1730562647287,-7813.29,0.00037534,2]
[341185302,1730562647304,-500.0,0.00037534,2]
[341185303,1730562647319,-7813.29,0.00037534,2]
[341185304,1730562647335,-7813.29,0.00037534,2]
[341185305,1730562647351,-500.0,0.00037534,2]
[341185306,1730562647370,-7813.29,0.00037534,2]
[341185307,1730562647387,-500.0,0.00037534,2]
[341185308,1730562647401,-500.0,0.00037534,2]
[341185309,1730562647419,-7813.29,0.00037534,2]
[341185310,1730562647434,-500.0,0.00037534,2]
[341185311,1730562647450,-500.0,0.00037534,2]
[341185312,1730562647463,-500.0,0.00037534,2]
[341185313,1730562647477,-500.0,0.00037534,2]
[341185314,1730562647491,-500.0,0.00037534,2]
[341185315,1730562647505,-500.0,0.00037534,2]
[341185316,1730562647519,-338.22448728,0.00037534,2]
[341185317,1730562647533,-437.31313498,0.00037534,2]
[341185318,1730562647547,-500.0,0.00037534,2]
[341185319,1730562647561,-500.0,0.00037534,2]
[341185320,1730562647576,-500.0,0.00037534,2]
[341185321,1730562647590,-500.0,0.00037534,2]
[341185322,1730562647604,-500.0,0.00037534,2]
[341185323,1730562647618,-159.98970082,0.00037534,2]
[341185324,1730562647633,-500.0,0.00037534,2]
[341185325,1730562647648,-500.0,0.00037534,2]
[341185326,1730562647664,-500.0,0.00037534,2]
[341185327,1730562647679,-641.16303102,0.00037534,2]
[341185328,1730562647695,-500.0,0.00037534,2]
[341185329,1730562647710,-500.0,0.00037534,2]
[341185330,1730562647727,-500.0,0.00037534,2]
[341185331,1730562647742,-500.0,0.00037534,2]
[341185332,1730562647753,-500.0,0.00037534,2]
[341185333,1730562647764,-500.0,0.00037534,2]
[341185334,1730562647776,-350.71208018,0.00037534,2]
[341185335,1730562647787,-2916.09,0.00037534,2]
[341185336,1730562647799,-2916.09,0.00037534,2]
[341185337,1730562647813,-2916.09,0.00037534,2]
[341185338,1730562647824,-2916.09,0.00037534,2]
[341185339,1730562647840,-2916.09,0.00037534,2]
[341185340,1730562647849,-500.0,0.00037534,2]
[341185341,1730562647858,-500.0,0.00037534,2]
[341185342,1730562647867,-2916.09,0.00037534,2]
[341185343,1730562647878,-500.0,0.00037534,2]
[341185344,1730562648020,-2916.09,0.00037534,2]
[341185345,1730562648033,-500.0,0.00037534,2]
[341185346,1730562648042,-2916.09,0.00037534,2]
[341185347,1730562648052,-500.0,0.00037534,2]
[341185348,1730562648061,-2916.09,0.00037534,2]
[341185349,1730562648072,-500.0,0.00037534,2]
[341185350,1730562648081,-253.86003714,0.00037534,2]
[341185351,1730562648090,-500.0,0.00037534,2]
[341185352,1730562648099,-500.0,0.00037534,2]
[341185353,1730562648108,-500.0,0.00037534,2]
[341185354,1730562648118,-449.56626823,0.00037534,2]
[341185355,1730562648127,-500.0,0.00037534,2]
[341185356,1730562648137,-571.17,0.00037534,2]
[341185357,1730562648146,-500.0,0.00037534,2]
[341185358,1730562648155,-538.53430405,0.00037534,2]
[341185359,1730562648164,-500.0,0.00037534,2]
[341185360,1730562648174,-571.17,0.00037534,2]
[341185361,1730562648183,-500.0,0.00037534,2]
[341185362,1730562648193,-571.17,0.00037534,2]
[341185363,1730562648202,-500.0,0.00037534,2]
[341185364,1730562648211,-571.17,0.00037534,2]
[341185365,1730562648220,-615.99844816,0.00037534,2]
[341185366,1730562648230,-571.17,0.00037534,2]
[341185367,1730562648239,-571.17,0.00037534,2]
[341185368,1730562648248,-571.17,0.00037534,2]
[341185369,1730562648257,-571.17,0.00037534,2]
[341185370,1730562648266,-571.17,0.00037534,2]
[341185371,1730562648275,-534.04256431,0.00037534,2]
[341185372,1730562648285,-500.0,0.00037534,2]
[341185373,1730562648294,-500.0,0.00037534,2]
[341185374,1730562648303,-500.0,0.00037534,2]
[341185375,1730562648313,-500.0,0.00037534,2]
[341185376,1730562648322,-500.0,0.00037534,2]
[341185377,1730562648331,-500.0,0.00037534,2]
[341185378,1730562648341,-500.0,0.00037534,2]
[341185379,1730562648350,-500.0,0.00037534,2]
[341185380,1730562648360,-500.0,0.00037534,2]
[341185381,1730562648369,-528.30671653,0.00037534,2]
[341185382,1730562648379,-500.0,0.00037534,2]
[341185383,1730562648388,-631.54700652,0.00037534,2]
[341185384,1730562648398,-500.0,0.00037534,2]
[341185385,1730562648407,-500.0,0.00037534,2]
[341185386,1730562648417,-500.0,0.00037534,2]
[341185387,1730562648426,-500.0,0.00037534,2]
[341185388,1730562648436,-500.0,0.00037534,2]
[341185389,1730562648445,-500.0,0.00037534,2]
[341185390,1730562648454,-500.0,0.00037534,2]
[341185391,1730562648464,-500.0,0.00037534,2]
[341185392,1730562648473,-500.0,0.00037534,2]
[341185393,1730562648483,-500.0,0.00037534,2]
[341185394,1730562648492,-500.0,0.00037534,2]
[341185395,1730562648501,-500.0,0.00037534,2]
[341185396,1730562648511,-500.0,0.00037534,2]
[341185397,1730562648520,-500.0,0.00037534,2]
[341185398,1730562648529,-518.94501815,0.00037534,2]
[341185399,1730562648538,-531.32141009,0.00037534,2]
[341185400,1730562648547,-500.0,0.00037534,2]
[341185401,1730562648556,-500.0,0.00037534,2]
[341185402,1730562648565,-500.0,0.00037534,2]
[341185403,1730562648575,-625.85,0.00037534,2]
[341185404,1730562648584,-625.85,0.00037534,2]
[341185405,1730562648593,-625.85,0.00037534,2]
[341185406,1730562648602,-625.85,0.00037534,2]
[341185407,1730562648611,-625.85,0.00037534,2]
[341185408,1730562648620,-500.0,0.00037534,2]
[341185409,1730562648630,-500.0,0.00037534,2]
[341185410,1730562648642,-625.85,0.00037534,2]
[341185411,1730562648651,-500.0,0.00037534,2]
[341185412,1730562648660,-625.85,0.00037534,2]
[341185413,1730562648669,-625.85,0.00037534,2]
[341185414,1730562648678,-509.81154594,0.00037534,2]
[341185415,1730562648687,-519.36958193,0.00037534,2]
[341185416,1730562648697,-500.0,0.00037534,2]
[341185417,1730562648706,-500.0,0.00037534,2]
[341185418,1730562648716,-500.0,0.00037534,2]
[341185419,1730562648725,-14145.06,0.00037534,2]
[341185420,1730562648734,-14145.06,0.00037534,2]
[341185421,1730562648743,-500.0,0.00037534,2]
[341185422,1730562648752,-14145.06,0.00037534,2]
[341185423,1730562648762,-500.0,0.00037534,2]
[341185424,1730562648771,-14145.06,0.00037534,2]
[341185425,1730562648780,-14145.06,0.00037534,2]
[341185426,1730562648789,-500.0,0.00037534,2]
[341185427,1730562648804,-14145.06,0.00037534,2]
[341185428,1730562648814,-14145.06,0.00037534,2]
[341185429,1730562648824,-14145.06,0.00037534,2]
[341185430,1730562648835,-500.0,0.00037534,2]
[341185431,1730562648844,-14145.06,0.00037534,2]
[341185432,1730562648854,-500.0,0.00037534,2]
[341185433,1730562648863,-163.29322899,0.00037534,2]
[341185434,1730562648874,-1788.78,0.00037534,2]
[341185435,1730562648884,-1788.78,0.00037534,2]
[341185436,1730562648893,-533.61460503,0.00037534,2]
[341185437,1730562648903,-1788.78,0.00037534,2]
[341185438,1730562648912,-500.0,0.00037534,2]
[341185439,1730562648923,-1788.78,0.00037534,2]
[341185440,1730562648932,-500.0,0.00037534,2]
[341185441,1730562648942,-1788.78,0.00037534,2]
[341185442,1730562648952,-500.0,0.00037534,2]
[341185443,1730562648962,-1788.78,0.00037534,2]
[341185444,1730562648971,-500.0,0.00037534,2]
[341185445,1730562648981,-500.0,0.00037534,2]
[341185446,1730562648990,-1788.78,0.00037534,2]
[341185447,1730562649000,-500.0,0.00037534,2]
[341185448,1730562649009,-1788.78,0.00037534,2]
[341185449,1730562649019,-500.0,0.00037534,2]
[341185450,1730562649028,-414.72386265,0.00037534,2]
[341185451,1730562649038,-1788.78,0.00037534,2]
[341185452,1730562649047,-482.01,0.00037534,2]
[341185453,1730562649056,-500.0,0.00037534,30]
[341185454,1730562649066,-500.0,0.00037534,30]
[341185455,1730562649075,-558.14595152,0.00037534,2]
[341185456,1730562649084,-278.11197151,0.00037534,2]
[341185457,1730562649094,-591.83820283,0.00037534,30]
[341185458,1730562649104,-1213.87,0.00037534,2]
[341185459,1730562649113,-1213.87,0.00037534,2]
[341185460,1730562649122,-1213.87,0.00037534,2]
[341185461,1730562649131,-1213.87,0.00037534,2]
[341185462,1730562649140,-1213.87,0.00037534,2]
[341185463,1730562649150,-1213.87,0.00037534,2]
[341185464,1730562649159,-1213.87,0.00037534,2]
[341185465,1730562649169,-500.0,0.00037534,2]
[341185466,1730562649178,-1213.87,0.00037534,2]
[341185467,1730562649187,-500.0,0.00037534,2]
[341185468,1730562649196,-1213.87,0.00037534,2]
[341185469,1730562649206,-500.0,0.00037534,2]
[341185470,1730562649215,-522.27219109,0.00037534,2]
[341185471,1730562649224,-528.56198379,0.00037534,2]
[341185472,1730562649234,-500.0,0.00037534,2]
[341185473,1730562649243,-500.0,0.00037534,2]
[341185474,1730562649252,-500.0,0.00037534,2]
[341185475,1730562649262,-170.25777976,0.00037534,2]
[341185476,1730562649271,-500.0,0.00037534,2]
[341185477,1730562649281,-569.92705769,0.00037534,2]
[341185478,1730562649290,-512.09050041,0.00037534,2]
[341185479,1730562649300,-500.0,0.00037534,2]
[341185480,1730562649310,-500.0,0.00037534,2]
[341185481,1730562649319,-500.0,0.00037534,2]
[341185482,1730562649331,-504.37491377,0.00037534,2]
[341185483,1730562649340,-500.0,0.00037534,2]
[341185484,1730562649349,-500.0,0.00037534,2]
[341185485,1730562649359,-500.0,0.00037534,2]
[341185486,1730562649370,-500.0,0.00037534,2]
[341185487,1730562649379,-500.0,0.00037534,2]
[341185488,1730562649389,-500.0,0.00037534,2]
[341185489,1730562649398,-500.0,0.00037534,2]
[341185490,1730562649407,-525.6445986,0.00037534,2]
[341185491,1730562649417,-540.08759737,0.00037534,2]
[341185492,1730562649426,-506.01951739,0.00037534,2]
[341185493,1730562649435,-500.0,0.00037534,2]
[341185494,1730562649444,-500.0,0.00037534,2]
[341185495,1730562649454,-500.0,0.00037534,2]
[341185496,1730562649464,-500.0,0.00037534,2]
[341185497,1730562649473,-500.0,0.00037534,2]
[341185498,1730562649482,-500.0,0.00037534,2]
[341185499,1730562649492,-500.0,0.00037534,2]
[341185500,1730562649502,-500.0,0.00037534,2]
[341185501,1730562649512,-500.0,0.00037534,2]
[341185502,1730562649522,-305.10829126,0.00037534,2]
[341185503,1730562649531,-455.74347227,0.00037534,2]
[341185504,1730562649541,-500.0,0.00037534,2]
[341185505,1730562649550,-500.0,0.00037534,2]
[341185506,1730562649560,-500.0,0.00037534,2]
[341185507,1730562649570,-500.0,0.00037534,2]
[341185508,1730562649582,-500.0,0.00037534,2]
[341185509,1730562649591,-500.0,0.00037534,2]
[341185510,1730562649600,-500.0,0.00037534,2]
[341185511,1730562649610,-500.0,0.00037534,2]
[341185512,1730562649619,-500.0,0.00037534,2]
[341185513,1730562649629,-500.0,0.00037534,2]
[341185514,1730562649638,-500.0,0.00037534,2]
[341185515,1730562649647,-500.0,0.00037534,2]
[341185516,1730562649658,-500.0,0.00037534,2]
[341185517,1730562649667,-500.0,0.00037534,2]
[341185518,1730562649677,-500.0,0.00037534,2]
[341185519,1730562649686,-500.0,0.00037534,2]
[341185520,1730562649696,-500.0,0.00037534,2]
[341185521,1730562649705,-451.8868361,0.00037534,2]
[341185522,1730562649715,-500.0,0.00037534,2]
[341185523,1730562649724,-500.0,0.00037534,2]
[341185524,1730562649734,-500.0,0.00037534,2]
[341185525,1730562649743,-500.0,0.00037534,2]
[341185526,1730562649753,-500.0,0.00037534,2]
[341185527,1730562649763,-500.0,0.00037534,2]
[341185528,1730562649772,-500.0,0.00037534,2]
[341185529,1730562649782,-500.0,0.00037534,2]
[341185530,1730562649793,-511.44595746,0.00037534,2]
[341185531,1730562649807,-500.0,0.00037534,2]
[341185532,1730562649817,-500.0,0.00037534,2]
[341185533,1730562649830,-500.0,0.00037534,2]
[341185534,1730562649840,-500.0,0.00037534,2]
[341185535,1730562649850,-500.0,0.00037534,2]
[341185536,1730562649859,-552.51620717,0.00037534,2]
[341185537,1730562649868,-570.69421881,0.00037534,2]
[341185538,1730562649880,-458.86169732,0.00037534,2]
[341185539,1730562649892,-500.0,0.00037534,2]
[341185540,1730562649903,-500.0,0.00037534,2]
[341185541,1730562649914,-451.21659355,0.00037534,2]
[341185542,1730562649924,-500.0,0.00037534,2]
[341185543,1730562649934,-517.59863826,0.00037534,2]
[341185544,1730562649943,-500.0,0.00037534,2]
[341185545,1730562649954,-500.0,0.00037534,2]
[341185546,1730562649966,-526.15038643,0.00037534,2]
[341185547,1730562649976,-500.0,0.00037534,2]
[341185548,1730562649986,-500.0,0.00037534,2]
[341185549,1730562649995,-259.57490237,0.00037534,2]
[341185550,1730562650005,-599.00912637,0.00037534,2]
[341185551,1730562650015,-500.0,0.00037534,2]
[341185552,1730562650026,-500.0,0.00037534,2]
[341185553,1730562650035,-500.0,0.00037534,2]
[341185554,1730562650045,-500.0,0.00037534,2]
[341185555,1730562650056,-540.83542868,0.00037534,2]
[341185556,1730562650066,-500.0,0.00037534,2]
[341185557,1730562650078,-500.0,0.00037534,2]
[341185558,1730562650087,-500.0,0.00037534,2]
[341185559,1730562650096,-500.0,0.00037534,2]
[341185560,1730562650105,-500.0,0.00037534,2]
[341185561,1730562650114,-500.0,0.00037534,2]
[341185562,1730562650125,-500.0,0.00037534,2]
[341185563,1730562650135,-500.0,0.00037534,2]
[341185564,1730562650146,-558.36757297,0.00037534,2]
[341185565,1730562650156,-150.0,0.00037536,2]
[341185566,1730562650166,-150.0,0.00037549,2]
[341185567,1730562650258,-150.0,0.0003755,2]
[341185568,1730562650269,-150.0,0.00037551,2]
[341185569,1730562650280,-176.96,0.00037555,120]
[341185570,1730562650290,-1500.0,0.00037568,2]
[341185571,1730562650301,-150.0,0.00037572,2]
[341185572,1730562650310,-500.0,0.00037573,5]
[341185573,1730562650320,-160.52369107,0.00037573,5]
[341185574,1730562650330,-500.0,0.00037573,5]
[341185575,1730562650339,-475.97276979,0.00037573,2]
[341185576,1730562650349,-500.0,0.00037573,5]
[341185577,1730562650359,-415.25841539,0.00037573,5]
[341185578,1730562650369,-159.96945892,0.00037573,5]
[341185579,1730562650380,-501.95834571,0.00037573,5]
[341185580,1730562650389,-500.0,0.00037573,5]
[341185581,1730562650398,-502.79614403,0.00037573,5]
[341185582,1730562650407,-182.64856318,0.00037573,2]
[341185583,1730562650417,-500.0,0.00037573,5]
[341185584,1730562650426,-150.0,0.00037573,2]
[341185585,1730562650435,-150.0,0.00037574,2]
[341185586,1730562650444,-81419.19165546,0.00037576,3]
[341185587,1730562650453,-150.0,0.00037587,2]
[341185588,1730562650463,-150.0,0.00037589,2]
[341185589,1730562650473,-150.0,0.00037594,2]
[341185590,1730562650482,-15245.94796083,0.00037595,3]
[341185591,1730562650491,-150.0,0.00037595,2]
[341185592,1730562650500,-17108.84204603,0.00037599,3]
[341185593,1730562650509,-723.02,0.000376,30]
[341185594,1730562650518,-1400.0,0.000376,13]
[341185595,1730562650527,-17108.84204603,0.00037606,3]
[341185596,1730562650536,-150.0,0.00037606,2]
[341185597,1730562650545,-150.0,0.00037607,2]
[341185598,1730562650554,-150.0,0.0003761,2]
[341185599,1730562650564,-45195.62591734,0.00037616,3]
[341185600,1730562650575,-150.0,0.00037616,2]
[341185601,1730562650584,-150.0,0.00037623,2]
[341185602,1730562650593,-15245.94796083,0.0003763,3]
[341185603,1730562650602,-150.0,0.00037648,2]
[341185604,1730562650611,-150.0,0.00037651,2]
[341185605,1730562650620,-150.0,0.00037653,2]
[341185606,1730562650629,-150.0,0.00037653,2]
[341185607,1730562650638,-45195.62591734,0.00037653,3]
[341185608,1730562650647,-10426.72580674,0.00037656,3]
[341185609,1730562650656,-150.0,0.00037659,2]
[341185610,1730562650666,-150.0,0.0003766,2]
[341185611,1730562650675,-81419.19165546,0.00037661,3]
[341185612,1730562650684,-150.0,0.00037663,2]
[341185613,1730562650693,-150.0,0.00037667,2]
[341185614,1730562650702,-150.0,0.00037668,2]
[341185615,1730562650711,-150.0,0.00037669,2]
[341185616,1730562650721,-150.0,0.00037677,2]
[341185617,1730562650730,-10426.72580674,0.00037679,3]
[341185618,1730562650739,-150.0,0.00037681,2]
[341185619,1730562650748,-150.0,0.00037683,2]
[341185620,1730562650757,-150.0,0.00037684,2]
[341185621,1730562650767,-150.0,0.00037684,2]
[341185622,1730562650776,-10426.72580674,0.00037687,3]
[341185623,1730562650785,-507.80122587,0.00037687,3]
[341185624,1730562650796,-150.0,0.00037692,2]
[341185625,1730562650807,-150.0,0.00037696,2]
[341185626,1730562650816,-150.0,0.00037698,2]
[341185627,1730562650827,-398.0,0.000377,23]
[341185628,1730562650837,-1900.0,0.000377,13]
[341185629,1730562650846,-150.0,0.00037703,2]
[341185630,1730562650856,-15245.94796083,0.00037703,3]
[341185631,1730562650865,-150.0,0.00037707,2]
[341185632,1730562650876,-150.0,0.00037711,2]
[341185633,1730562650886,-150.0,0.00037712,2]
[341185634,1730562650895,-10426.72580674,0.00037713,3]
[341185635,1730562650904,-45195.62591734,0.00037718,3]
[341185636,1730562650914,-81419.19165546,0.00037723,3]
[341185637,1730562650924,-150.0,0.00037725,2]
[341185638,1730562650934,-150.0,0.00037738,2]
[341185639,1730562650945,-150.0,0.00037744,2]
[341185640,1730562650957,-150.0,0.00037745,2]
[341185641,1730562650967,-150.0,0.00037757,2]
[341185642,1730562650979,-150.0,0.0003776,2]
[341185643,1730562650989,-15245.94796083,0.00037761,3]
[341185644,1730562650999,-17108.84204603,0.00037767,3]
[341185645,1730562651009,-500.0,0.0003777,7]
[341185646,1730562651020,-505.0,0.0003777,7]
[341185647,1730562651031,-153.60284394,0.00037771,2]
[341185648,1730562651042,-692.35142368,0.00037778,2]
[341185649,1730562651052,-150.0,0.0003778,2]